fUST/lending_fUST_20240927
["ID","MTS","AMOUNT","RATE_DAILY","PERIOD"]
[339265269,1727421053747,-355.33,0.00019726,2]
[339265270,1727421053756,-500.0,0.00019726,2]
[339265271,1727421053765,-500.0,0.00019726,2]
[339265272,1727421053777,-2332.75,0.00019726,2]
[339265273,1727421053786,-620.12,0.00019726,2]
[339265274,1727421053796,-500.0,0.00019726,2]
[339265275,1727421053805,-417.4,0.00019726,2]
[339265276,1727421053815,-672.922274,0.00019726,2]
[339265277,1727421053825,-207.38,0.00019726,2]
[339265278,1727421053834,-500.0,0.00019726,2]
[339265279,1727421053843,-204.91,0.00019726,2]
[339265280,1727421053855,-151.0,0.00019726,2]
[339265281,1727421053864,-236.521968,0.00019726,2]
[339265282,1727421053873,-1724.24,0.00019726,2]
[339265283,1727421053883,-236.521969,0.00019726,2]
[339265284,1727421053893,-500.0,0.00019726,2]
[339265285,1727421053902,-358.48525124,0.00019726,2]
[339265286,1727421053912,-609.41,0.00019726,2]
[339265287,1727421053921,-504.86259437,0.00019726,2]
[339265288,1727421053931,-238.255488,0.00019726,2]
[339265289,1727421053940,-238.25548,0.00019726,2]
[339265290,1727421053950,-500.0,0.00019726,2]
[339265291,1727421053960,-476.74367815,0.00019726,2]
[339265292,1727421053969,-626.93950403,0.00019726,2]
[339265293,1727421053979,-500.0,0.00019726,2]
[339265294,1727421053988,-527.98984652,0.00019726,2]
[339265295,1727421053999,-292.58,0.00019726,2]
[339265296,1727421054009,-236.76250002,0.00019726,2]
[339265297,1727421054019,-534.182971,0.00019726,2]
[339265298,1727421054029,-534.182973,0.00019726,2]
[339265299,1727421054038,-519.92179312,0.00019726,2]
[339265300,1727421054048,-413.7038129,0.00019726,2]
[339265301,1727421054057,-516.82072127,0.00019726,2]
[339265302,1727421054067,-311.584747,0.00019726,2]
[339265303,1727421054076,-311.584738,0.00019726,2]
[339265304,1727421054086,-178.12905029,0.00019726,2]
[339265305,1727421054096,-500.0,0.00019726,2]
[339265306,1727421054106,-157.87579031,0.00019726,2]
[339265307,1727421054115,-295.84,0.00019726,2]
[339265308,1727421054125,-618.77091909,0.00019726,2]
[339265309,1727421054134,-232.97,0.00019726,2]
[339265310,1727421054143,-510.55026176,0.00019726,2]
[339265311,1727421054152,-500.0,0.00019726,2]
[339265312,1727421054162,-500.0,0.00019726,2]
[339265313,1727421054171,-435.00958,0.00019726,2]
[339265314,1727421054181,-500.0,0.00019726,2]
[339265315,1727421054191,-602.6383402,0.00019726,2]
[339265316,1727421054200,-435.009577,0.00019726,2]
[339265317,1727421054210,-180.79413823,0.00019726,2]
[339265318,1727421054219,-500.0,0.00019726,2]
[339265319,1727421054228,-500.0,0.00019726,2]
[339265320,1727421054238,-500.0,0.00019726,2]
[339265321,1727421054247,-500.0,0.00019726,2]
[339265322,1727421054256,-2096.99,0.00019726,2]
[339265323,1727421054265,-500.0,0.00019726,2]
[339265324,1727421054275,-500.0,0.00019726,2]
[339265325,1727421054285,-192.44,0.00019726,2]
[339265326,1727421054294,-561.20569069,0.00019726,2]
[339265327,1727421054304,-500.0,0.00019726,2]
[339265328,1727421054313,-187.71295676,0.00019726,2]
[339265329,1727421054323,-598.64,0.00019726,2]
[339265330,1727421054332,-5000.0,0.00019726,2]
[339265331,1727421054342,-598.29239378,0.00019726,2]
[339265332,1727421054351,-553.41122372,0.00019726,2]
[339265333,1727421054361,-168.49,0.00019726,2]
[339265334,1727421054370,-500.0,0.00019726,2]
[339265335,1727421054380,-19919.37,0.00019726,2]
[339265336,1727421054389,-3649.69,0.00019726,2]
[339265337,1727421054399,-746.72,0.00019726,2]
[339265338,1727421054409,-490.85,0.00019726,2]
[339265339,1727421054419,-500.12488518,0.00019726,2]
[339265340,1727421054429,-500.0,0.00019773,2]
[339265341,1727421054438,-282.379903,0.00019773,2]
[339265342,1727421054447,-150.204243,0.000198,2]
[339265343,1727421054457,-1000.0,0.00019821,2]
[339265344,1727421054466,-55942.0,0.00019824,2]
[339265345,1727421054476,-1000.0,0.0001986,2]
[339265346,1727421054485,-436.94985077,0.00019873,2]
[339265347,1727421054494,-549.18471753,0.00019948,2]
[339265348,1727421054504,-1000.0,0.00019952,2]
[339265349,1727421054513,-164.45311944,0.00019973,2]
[339265350,1727421054523,-638.14017677,0.00019973,2]
[339265351,1727421054532,-374.02611498,0.00019973,2]
[339265352,1727421054541,-169.47869223,0.0001998,2]
[339265353,1727421054551,-3226.36023378,0.00019989,2]
[339265354,1727421054560,-150.01,0.00019989,2]
[339265355,1727421054570,-4999.9,0.0001999,2]
[339265356,1727421054579,-33404.6849428,0.0001999,2]
[339265357,1727421054597,-12275.18448806,0.0001999,2]
[339265358,1727421054606,-238.582917,0.0001999,2]
[339265359,1727421054616,-238.582917,0.0001999,2]
[339265360,1727421054625,-151.0,0.0001999,2]
[339265361,1727421054635,-212.022229,0.0001999,2]
[339265362,1727421054645,-331.608593,0.0001999,2]
[339265363,1727421054654,-331.608593,0.0001999,2]
[339265364,1727421054664,-194.543515,0.0001999,2]
[339265365,1727421054673,-194.543515,0.0001999,2]
[339265366,1727421054683,-182.308056,0.0001999,2]
[339265367,1727421054692,-2000.0,0.0002,2]
[339265368,1727421054702,-7605.980684,0.0002,3]
[339265369,1727421054711,-238.582917,0.0002,2]
[339265370,1727421054721,-238.582921,0.0002,2]
[339265371,1727421054731,-151.0,0.0002,2]
[339265372,1727421054740,-151.0,0.0002,2]
[339265373,1727421054750,-151.0,0.0002,2]
[339265374,1727421054760,-151.0,0.0002,2]
[339265375,1727421054771,-151.0,0.0002,2]
[339265376,1727421054784,-500.0,0.0002,7]
[339265377,1727421054794,-500.0,0.0002,7]
[339265378,1727421054804,-500.0,0.0002,7]
[339265379,1727421054814,-500.0,0.0002,2]
[339265380,1727421054824,-453.34,0.0002,7]
[339265381,1727421054834,-630.12290026,0.0002,2]
[339265382,1727421054843,-500.0,0.0002,7]
[339265383,1727421054855,-500.0,0.0002,7]
[339265384,1727421054865,-500.0,0.0002,7]
[339265385,1727421054875,-500.0,0.0002,7]
[339265386,1727421054885,-500.0,0.0002,7]
[339265387,1727421054894,-500.0,0.0002,7]
[339265388,1727421054904,-500.0,0.0002,7]
[339265389,1727421054913,-168.94,0.0002,7]
[339265390,1727421054923,-500.0,0.0002,2]
[339265391,1727421054933,-594.11,0.0002,2]
[339265392,1727421054942,-181.95433877,0.0002,2]
[339265393,1727421054952,-1205.84,0.0002,2]
[339265394,1727421054961,-1440.54,0.0002,2]
[339265395,1727421054970,-645.0,0.0002,2]
[339265396,1727421054979,-1233.51,0.0002,2]
[339265397,1727421054989,-523.03780286,0.0002,2]
[339265398,1727421054998,-386.29035934,0.0002,2]
[339265399,1727421055008,-500.0,0.0002,2]
[339265400,1727421055017,-789.87979194,0.0002,2]
[339265401,1727421055027,-500.0,0.0002,7]
[339265402,1727421055035,-500.0,0.0002,2]
[339265403,1727421055045,-500.0,0.0002,2]
[339265404,1727421055054,-500.0,0.0002,7]
[339265405,1727421055063,-500.0,0.0002,2]
[339265406,1727421055072,-546.54745318,0.0002,2]
[339265407,1727421055081,-500.0,0.0002,7]
[339265408,1727421055090,-2332.75,0.0002,2]
[339265409,1727421055099,-500.0,0.0002,7]
[339265410,1727421055109,-506.95147039,0.0002,2]
[339265411,1727421055118,-207.38,0.0002,2]
[339265412,1727421055127,-500.0,0.0002,2]
[339265413,1727421055136,-1724.24,0.0002,2]
[339265414,1727421055146,-380.85087207,0.0002,2]
[339265415,1727421055155,-500.0,0.0002,2]
[339265416,1727421055165,-500.0,0.0002,2]
[339265417,1727421055174,-2000.0,0.0002,21]
[339265418,1727421055183,-150.0,0.0002,2]
[339265419,1727421055193,-176.27475682,0.0002,2]
[339265420,1727421055202,-500.0,0.0002,2]
[339265421,1727421055211,-500.0,0.0002,2]
[339265422,1727421055221,-259.09,0.0002,2]
[339265424,1727421055231,-500.0,0.0002,2]
[339265425,1727421055241,-500.0,0.0002,2]
[339265426,1727421055250,-500.0,0.0002,2]
[339265427,1727421055259,-2096.99,0.0002,2]
[339265428,1727421055268,-189.93746664,0.0002,2]
[339265429,1727421055278,-500.0,0.0002,2]
[339265430,1727421055287,-598.64,0.0002,2]
[339265431,1727421055297,-4751.17274609,0.0002,2]
[339265432,1727421055308,-269.27,0.0002,2]
[339265433,1727421055317,-19919.37,0.0002,2]
[339265434,1727421055326,-3649.69,0.0002,2]
[339265435,1727421055336,-746.72,0.0002,2]
[339265436,1727421055345,-1125.2598646,0.00020021,2]
[339265437,1727421055354,-404.07975281,0.00020021,2]
[339265438,1727421055363,-507.23894517,0.00020021,2]
[339265439,1727421055373,-1000.0,0.00020021,2]
[339265440,1727421055382,-1000.0,0.00020021,2]
[339265441,1727421055391,-1000.0,0.00020021,2]
[339265442,1727421055400,-1000.0,0.00020021,2]
[339265443,1727421055409,-151.0,0.00020034,2]
[339265444,1727421055420,-151.0,0.00020034,2]
[339265445,1727421055429,-151.0,0.00020034,2]
[339265446,1727421055438,-151.0,0.00020034,2]
[339265447,1727421055447,-151.0,0.00020034,2]
[339265448,1727421055456,-151.0,0.00020034,2]
[339265449,1727421055465,-331.608593,0.00020034,2]
[339265450,1727421055475,-331.608593,0.00020034,2]
[339265451,1727421055484,-194.543515,0.00020034,2]
[339265452,1727421055494,-194.543515,0.00020034,2]
[339265453,1727421055503,-526.743,0.00020034,2]
[339265454,1727421055512,-1220.467,0.00020034,2]
[339265455,1727421055521,-500.0,0.00020273,2]
[339265456,1727421055530,-500.0,0.00020273,2]
[339265457,1727421055539,-594.11,0.00020273,2]
[339265458,1727421055635,-1205.84,0.00020273,2]
[339265459,1727421055644,-1440.54,0.00020273,2]
[339265460,1727421055653,-645.0,0.00020273,2]
[339265461,1727421055663,-1233.51,0.00020273,2]
[339265462,1727421055672,-500.0,0.00020273,2]
[339265463,1727421055682,-500.0,0.00020273,2]
[339265464,1727421055691,-500.0,0.00020273,2]
[339265465,1727421055700,-500.0,0.00020273,2]
[339265466,1727421055709,-2332.75,0.00020273,2]
[339265467,1727421055718,-207.38,0.00020273,2]
[339265468,1727421055727,-500.0,0.00020273,2]
[339265469,1727421055736,-1724.24,0.00020273,2]
[339265470,1727421055745,-500.0,0.00020273,2]
[339265471,1727421055755,-614.41819999,0.00020273,2]
[339265472,1727421055765,-273.31,0.00020273,2]
[339265473,1727421055777,-500.0,0.00020273,2]
[339265474,1727421055786,-2096.99,0.00020273,2]
[339265475,1727421055795,-500.0,0.00020273,2]
[339265476,1727421055805,-598.64,0.00020273,2]
[339265477,1727421055815,-19919.37,0.00020273,2]
[339265478,1727421055824,-3649.69,0.00020273,2]
[339265479,1727421055833,-746.72,0.00020273,2]
[339265480,1727421055842,-1000.83854048,0.00020321,2]
[339265481,1727421055854,-146813.0,0.00020377,2]
[339265482,1727421055863,-151.0,0.00020377,2]
[339265483,1727421055872,-151.0,0.00020377,2]
[339265484,1727421055882,-151.0,0.00020377,2]
[339265485,1727421055891,-151.0,0.00020377,2]
[339265486,1727421055900,-151.0,0.00020377,2]
[339265487,1727421055909,-151.0,0.00020377,2]
[339265488,1727421055918,-331.608593,0.00020377,2]
[339265489,1727421055927,-331.608598,0.00020377,2]
[339265490,1727421055936,-194.543515,0.00020377,2]
[339265491,1727421055946,-194.543524,0.00020377,2]
[339265492,1727421055955,-465.0256443,0.00020421,2]
[339265493,1727421055964,-3845.33078029,0.000205,2]
[339265494,1727421055974,-500.0,0.00020547,2]
[339265495,1727421055982,-500.0,0.00020547,2]
[339265496,1727421055992,-594.11,0.00020547,2]
[339265497,1727421056001,-1205.84,0.00020547,2]
[339265498,1727421056011,-1440.54,0.00020547,2]
[339265499,1727421056020,-645.0,0.00020547,2]
[339265500,1727421056029,-1233.51,0.00020547,2]
[339265501,1727421056039,-500.0,0.00020547,2]
[339265502,1727421056048,-500.0,0.00020547,2]
[339265503,1727421056057,-500.0,0.00020547,2]
[339265504,1727421056067,-500.0,0.00020547,2]
[339265505,1727421056076,-2332.75,0.00020547,2]
[339265506,1727421056086,-207.38,0.00020547,2]
[339265507,1727421056095,-500.0,0.00020547,2]
[339265508,1727421056104,-1724.24,0.00020547,2]
[339265509,1727421056114,-500.0,0.00020547,2]
[339265510,1727421056123,-500.0,0.00020547,2]
[339265511,1727421056133,-2096.99,0.00020547,2]
[339265512,1727421056143,-500.0,0.00020547,2]
[339265513,1727421056152,-598.64,0.00020547,2]
[339265514,1727421056162,-19919.37,0.00020547,2]
[339265515,1727421056172,-3649.69,0.00020547,2]
[339265516,1727421056181,-746.72,0.00020547,2]
[339265517,1727421056190,-1246.533692,0.00020548,2]
[339265518,1727421056199,-153.0,0.00020575,2]
[339265519,1727421056208,-9602.5888428,0.0002061,2]
[339265520,1727421056222,-598.0205773,0.0002061,2]
[339265521,1727421056233,-2667.14662687,0.0002061,2]
[339265522,1727421056459,-264.69563237,0.00019148,2]
[339265523,1727421056534,-233.54449536,0.00018928,2]
[339265524,1727421056543,-272.93507363,0.00019148,2]
[339265525,1727421056553,-76.01453554,0.00019148,2]
[339265526,1727421056564,-461.61617046,0.00019148,2]
[339265527,1727421056574,-537.630706,0.00019158,2]
[339265528,1727421056583,-537.630706,0.00019168,2]
[339265529,1727421056592,-537.630706,0.00019178,2]
[339265530,1727421056602,-537.630706,0.00019178,2]
[339265531,1727421056611,-537.630706,0.00019178,2]
[339265532,1727421056620,-153.0,0.00019333,2]
[339265533,1727421056629,-153.0,0.00019333,2]
[339265534,1727421056639,-153.0,0.00019333,2]
[339265535,1727421056648,-153.0,0.00019333,2]
[339265536,1727421056657,-537.630706,0.00019452,2]
[339265537,1727421056666,-537.630706,0.00019452,2]
[339265538,1727421056676,-509.662382,0.00019478,2]
[339265539,1727421056685,-1781.29172554,0.0002061,2]
[339265540,1727421056695,-151.0,0.0002061,2]
[339265541,1727421056705,-1000.0,0.00020619,2]
[339265542,1727421056714,-1000.0,0.0002067,2]
[339265543,1727421056724,-872.40673539,0.00020693,2]
[339265544,1727421057870,-35.27501843,0.00020693,2]
[339265588,1727421840729,250.0,0.00013793,2]
[339265589,1727421840959,250.0,0.00013831,2]
[339265590,1727421841162,250.0,0.00013869,2]
[339265591,1727421841363,250.0,0.00013907,2]
[339265592,1727421841565,250.0,0.00013944,2]
[339265593,1727421841786,250.0,0.00013982,2]
[339265594,1727421841985,250.0,0.0001402,2]
[339265595,1727421842236,250.0,0.00014058,2]
[339265596,1727421842659,250.0,0.00014096,2]
[339265597,1727421855832,1186.038702,0.00013699,2]
[339265600,1727422022675,3000.0,0.00013426,2]
[339265601,1727422029170,-250.0,0.00014134,2]
[339265602,1727422029194,-250.0,0.00014171,2]
[339265603,1727422029219,-250.0,0.00014209,2]
[339265604,1727422029245,-250.0,0.00014247,2]
[339265605,1727422029268,-250.0,0.00014285,2]
[339265606,1727422029292,-250.0,0.00014323,2]
[339265607,1727422029317,-250.0,0.00014361,2]
[339265608,1727422029339,-250.0,0.00014398,2]
[339265609,1727422029361,-176.74645721,0.00014412,2]
[339265610,1727422029384,-250.0,0.00014436,2]
[339265611,1727422029406,-176.74645719,0.00014467,2]
[339265612,1727422029430,-250.0,0.00014474,2]
[339265613,1727422029452,-2182.35191673,0.00014512,2]
[339265614,1727422034160,-1136.28360315,0.00014512,2]
[339265615,1727422034183,-250.0,0.00014512,2]
[339265616,1727422034206,-176.74645719,0.00014521,2]
[339265617,1727422034230,-300.0,0.00014618,2]
[339265618,1727422034250,-209.47074446,0.00014619,2]
[339265619,1727422034271,-79.31998857,0.00014619,2]
[339265620,1727422043127,-420.68001143,0.00014619,2]
[339265621,1727422043152,-180.37880346,0.00014619,2]
[339265622,1727422078010,1673.1558269,0.00013643,2]
[339265630,1727422153131,-523.14816912,0.00014519,2]
[339265631,1727422153159,-300.0,0.00014607,2]
[339265632,1727422153183,-300.0,0.00014607,2]
[339265633,1727422153208,-547.27278826,0.00014608,2]
[339265634,1727422153230,-431.31412503,0.00014608,2]
[339265635,1727422153254,-500.0,0.00014608,2]
[339265636,1727422153277,-253.49214417,0.00014608,2]
[339265637,1727422153300,-500.0,0.00014608,2]
[339265638,1727422153322,-500.0,0.00014608,2]
[339265639,1727422153345,-588.25255234,0.00014608,2]
[339265640,1727422153370,-500.0,0.00014608,2]
[339265641,1727422153393,-500.0,0.00014608,2]
[339265642,1727422153415,-500.0,0.00014608,2]
[339265643,1727422153437,-500.0,0.00014608,2]
[339265644,1727422153460,-500.0,0.00014608,2]
[339265645,1727422153488,-500.0,0.00014608,2]
[339265646,1727422153511,-500.0,0.00014608,2]
[339265647,1727422153540,-500.0,0.00014608,2]
[339265648,1727422153563,-372.00335813,0.00014608,2]
[339265649,1727422153584,-233.71633169,0.00014608,2]
[339265650,1727422153607,-500.0,0.00014608,2]
[339265651,1727422153634,-500.0,0.00014608,2]
[339265652,1727422153657,-500.0,0.00014608,2]
[339265653,1727422153683,-500.0,0.00014608,2]
[339265654,1727422153706,-500.0,0.00014608,2]
[339265655,1727422153730,-500.0,0.00014608,2]
[339265656,1727422153756,-500.0,0.00014608,2]
[339265657,1727422153781,-500.0,0.00014608,2]
[339265658,1727422153806,-500.0,0.00014608,2]
[339265659,1727422153831,-500.0,0.00014608,2]
[339265660,1727422153856,-500.0,0.00014608,2]
[339265661,1727422153881,-500.0,0.00014608,2]
[339265662,1727422153906,-500.0,0.00014608,2]
[339265663,1727422153930,-500.0,0.00014608,2]
[339265664,1727422153956,-500.0,0.00014608,2]
[339265665,1727422153980,-500.0,0.00014608,2]
[339265666,1727422154007,-500.0,0.00014608,2]
[339265667,1727422154029,-500.0,0.00014608,2]
[339265668,1727422154054,-500.0,0.00014608,2]
[339265669,1727422154080,-500.0,0.00014608,2]
[339265670,1727422154107,-500.0,0.00014608,2]
[339265671,1727422154130,-500.0,0.00014608,2]
[339265672,1727422154156,-500.0,0.00014608,2]
[339265673,1727422154179,-500.0,0.00014608,2]
[339265674,1727422154204,-500.0,0.00014608,2]
[339265675,1727422154226,-500.0,0.00014608,2]
[339265676,1727422154257,-500.0,0.00014608,2]
[339265677,1727422154287,-500.0,0.00014608,2]
[339265678,1727422154310,-500.0,0.00014608,2]
[339265679,1727422154336,-500.0,0.00014608,2]
[339265680,1727422154360,-500.0,0.00014608,2]
[339265681,1727422154385,-500.0,0.00014608,2]
[339265682,1727422154408,-500.0,0.00014608,2]
[339265683,1727422154434,-500.0,0.00014608,2]
[339265684,1727422154456,-500.0,0.00014608,2]
[339265685,1727422154479,-500.0,0.00014608,2]
[339265686,1727422154504,-500.0,0.00014608,2]
[339265687,1727422154531,-500.0,0.00014608,2]
[339265688,1727422154719,-500.0,0.00014608,2]
[339265689,1727422154746,-500.0,0.00014608,2]
[339265690,1727422154773,-500.0,0.00014608,2]
[339265691,1727422154801,-500.0,0.00014608,2]
[339265692,1727422154824,-500.0,0.00014608,2]
[339265693,1727422154846,-500.0,0.00014608,2]
[339265694,1727422154871,-500.0,0.00014608,2]
[339265695,1727422154892,-505.1644795,0.00014608,2]
[339265696,1727422154918,-500.0,0.00014608,2]
[339265697,1727422154941,-500.0,0.00014608,2]
[339265698,1727422154966,-500.0,0.00014608,2]
[339265699,1727422154989,-500.0,0.00014608,2]
[339265701,1727422155017,-520.81698885,0.00014608,2]
[339265702,1727422155040,-500.0,0.00014608,2]
[339265704,1727422155067,-500.0,0.00014608,2]
[339265705,1727422155090,-500.0,0.00014608,2]
[339265707,1727422155120,-500.0,0.00014608,2]
[339265709,1727422155144,-500.0,0.00014608,2]
[339265710,1727422155169,-500.0,0.00014608,2]
[339265711,1727422155191,-500.0,0.00014608,2]
[339265712,1727422155217,-500.0,0.00014608,2]
[339265713,1727422155240,-500.0,0.00014608,2]
[339265714,1727422155263,-500.0,0.00014608,2]
[339265715,1727422155286,-617.6176891,0.00014608,2]
[339265716,1727422155308,-500.0,0.00014608,2]
[339265717,1727422155329,-500.0,0.00014608,2]
[339265718,1727422155352,-549.03240187,0.00014608,2]
[339265719,1727422155373,-500.0,0.00014608,2]
[339265720,1727422155394,-634.02176007,0.00014608,2]
[339265721,1727422155416,-500.0,0.00014608,2]
[339265722,1727422155443,-500.0,0.00014608,2]
[339265723,1727422155468,-500.0,0.00014608,2]
[339265724,1727422155491,-500.0,0.00014608,2]
[339265725,1727422155515,-500.0,0.00014608,2]
[339265726,1727422155538,-500.0,0.00014608,2]
[339265727,1727422155564,-924.82566824,0.00014608,2]
[339265728,1727422155587,-500.0,0.00014608,2]
[339265729,1727422155614,-924.82566824,0.00014608,2]
[339265730,1727422155637,-500.0,0.00014608,2]
[339265731,1727422155661,-924.82566824,0.00014608,2]
[339265732,1727422155683,-500.0,0.00014608,2]
[339265733,1727422155707,-924.82566824,0.00014608,2]
[339265734,1727422155729,-500.0,0.00014608,2]
[339265735,1727422155751,-500.0,0.00014608,2]
[339265736,1727422155776,-924.82566824,0.00014608,2]
[339265737,1727422155800,-924.82566824,0.00014608,2]
[339265738,1727422155824,-500.0,0.00014608,2]
[339265739,1727422155851,-924.82566824,0.00014608,2]
[339265740,1727422155872,-500.0,0.00014608,2]
[339265741,1727422155900,-924.82566824,0.00014608,2]
[339265742,1727422155922,-500.0,0.00014608,2]
[339265743,1727422155946,-924.82566824,0.00014608,2]
[339265744,1727422155967,-500.0,0.00014608,2]
[339265745,1727422155992,-924.82566824,0.00014608,2]
[339265746,1727422156015,-500.0,0.00014608,2]
[339265747,1727422156040,-924.82566824,0.00014608,2]
[339265748,1727422156063,-500.0,0.00014608,2]
[339265749,1727422156090,-924.82566824,0.00014608,2]
[339265750,1727422156115,-500.0,0.00014608,2]
[339265751,1727422156143,-924.82566824,0.00014608,2]
[339265752,1727422156168,-924.82566824,0.00014608,2]
[339265753,1727422156192,-500.0,0.00014608,2]
[339265754,1727422156218,-924.82566824,0.00014608,2]
[339265755,1727422156241,-500.0,0.00014608,2]
[339265756,1727422156271,-924.82566824,0.00014608,2]
[339265757,1727422156294,-924.82566824,0.00014608,2]
[339265758,1727422156315,-500.0,0.00014608,2]
[339265759,1727422156341,-924.82566824,0.00014608,2]
[339265760,1727422156365,-500.0,0.00014608,2]
[339265761,1727422156390,-924.82566824,0.00014608,2]
[339265762,1727422156414,-500.0,0.00014608,2]
[339265763,1727422156442,-924.82566824,0.00014608,2]
[339265764,1727422156465,-388.86651015,0.00014608,2]
[339265765,1727422156491,-924.82566824,0.00014608,2]
[339265766,1727422156518,-924.82566824,0.00014608,2]
[339265767,1727422156540,-500.0,0.00014608,2]
[339265768,1727422156566,-924.82566824,0.00014608,2]
[339265769,1727422156588,-500.0,0.00014608,2]
[339265770,1727422156613,-924.82566824,0.00014608,2]
[339265771,1727422156638,-924.82566824,0.00014608,2]
[339265772,1727422156663,-924.82566824,0.00014608,2]
[339265773,1727422156687,-924.82566824,0.00014608,2]
[339265774,1727422156711,-924.82566824,0.00014608,2]
[339265775,1727422156735,-924.82566824,0.00014608,2]
[339265776,1727422156760,-924.82566824,0.00014608,2]
[339265777,1727422156784,-924.82566824,0.00014608,2]
[339265778,1727422156807,-924.82566824,0.00014608,2]
[339265779,1727422156832,-924.82566824,0.00014608,2]
[339265780,1727422156858,-924.82566824,0.00014608,2]
[339265781,1727422156882,-924.82566824,0.00014608,2]
[339265782,1727422156908,-924.82566824,0.00014608,2]
[339265783,1727422156936,-924.82566824,0.00014608,2]
[339265784,1727422156962,-924.82566824,0.00014608,2]
[339265785,1727422156987,-924.82566824,0.00014608,2]
[339265786,1727422157014,-924.82566824,0.00014608,2]
[339265787,1727422157040,-924.82566824,0.00014608,2]
[339265788,1727422157066,-924.82566824,0.00014608,2]
[339265789,1727422157092,-924.82566824,0.00014608,2]
[339265790,1727422157122,-924.82566824,0.00014608,2]
[339265791,1727422157148,-890.14470568,0.00014608,2]
[339265792,1727422157174,-890.14470568,0.00014608,2]
[339265793,1727422157200,-890.14470568,0.00014608,2]
[339265794,1727422157225,-890.14470568,0.00014608,2]
[339265795,1727422157250,-890.14470568,0.00014608,2]
[339265796,1727422157275,-890.14470568,0.00014608,2]
[339265797,1727422157300,-890.14470568,0.00014608,2]
[339265798,1727422157325,-890.14470568,0.00014608,2]
[339265799,1727422157351,-890.14470568,0.00014608,2]
[339265800,1727422157377,-890.14470568,0.00014608,2]
[339265801,1727422157403,-890.14470568,0.00014608,2]
[339265802,1727422157427,-890.14470568,0.00014608,2]
[339265803,1727422157451,-890.14470568,0.00014608,2]
[339265804,1727422157476,-890.14470568,0.00014608,2]
[339265805,1727422157503,-890.14470568,0.00014608,2]
[339265806,1727422157524,-47384.460228,0.00014609,2]
[339265807,1727422157547,-46827.2859405,0.00014609,2]
[339265808,1727422157567,-3773.22712599,0.0001462,2]
[339265809,1727422157590,-24900.0,0.00014621,2]
[339265810,1727422157613,-1193.847371,0.00014658,2]
[339265811,1727422157635,-500.0,0.00014673,2]
[339265812,1727422157656,-501.30359529,0.00014673,2]
[339265813,1727422157677,-500.0,0.00014673,2]
[339265814,1727422157698,-500.7346796,0.00014673,2]
[339265815,1727422157719,-502.25439013,0.00014673,2]
[339265816,1727422157741,-500.0,0.00014673,2]
[339265817,1727422157763,-500.0,0.00014673,2]
[339265818,1727422157784,-500.78709106,0.000147,2]
[339265819,1727422157805,-500.64230462,0.000147,2]
[339265820,1727422157826,-540.48163121,0.000147,2]
[339265821,1727422157850,-169.388676,0.00015068,2]
[339265822,1727422157872,-1000.0,0.00015221,2]
[339265823,1727422158004,-1000.0,0.00015221,2]
[339265824,1727422158029,-1193.847371,0.00015342,2]
[339265825,1727422158052,-169.388676,0.00015509,2]